[Event "*** Titled Tuesday Blitz"]
[Site "Chess.com"]
[Date "2018.04.03"]
[Round "9"]
[White "SmoothAsAHedgehog"]
[Black "JSPrepz"]
[Result "0-1"]
[WhiteElo "2577"]
[BlackElo "2598"]
[TimeControl "180+2"]
[EndTime "15:02:46 PDT"]
[Termination "JSPrepz won by resignation"]

1. b3 {[%clk 0:02:58]} 1... e5 {[%clk 0:02:59.7]} 2. Bb2 {[%clk 0:02:57.8]} 2...
Nc6 {[%clk 0:02:47.2]} 3. e3 {[%clk 0:02:45.9]} 3... d5 {[%clk 0:02:46.8]} 4.
Bb5 {[%clk 0:02:43.1]} 4... Bd6 {[%clk 0:02:46.9]} 5. Nf3 {[%clk 0:02:42.1]}
5... f6 {[%clk 0:02:42.5]} 6. d4 {[%clk 0:02:37.7]} 6... e4 {[%clk 0:02:40.9]}
7. Ng1 {[%clk 0:02:28.2]} 7... f5 {[%clk 0:02:41.8]} 8. Nh3 {[%clk 0:02:24.1]}
8... Nf6 {[%clk 0:02:42.1]} 9. Ba3 {[%clk 0:02:11.8]} 9... O-O {[%clk 0:02:41]}
10. Bxd6 {[%clk 0:02:12.4]} 10... Qxd6 {[%clk 0:02:36.9]} 11. O-O {[%clk
0:02:11]} 11... a6 {[%clk 0:02:36.8]} 12. Be2 {[%clk 0:02:11.6]} 12... Bd7
{[%clk 0:02:28.1]} 13. c4 {[%clk 0:02:10.9]} 13... Nd8 {[%clk 0:02:29]} 14. cxd5
{[%clk 0:02:09.4]} 14... Nxd5 {[%clk 0:02:29.4]} 15. Qc2 {[%clk 0:02:05.4]}
15... Ne6 {[%clk 0:02:24.6]} 16. Nc3 {[%clk 0:02:05.2]} 16... c6 {[%clk
0:02:22.3]} 17. Rac1 {[%clk 0:01:59.6]} 17... Kh8 {[%clk 0:02:05.1]} 18. Qd2
{[%clk 0:01:54]} 18... Nf6 {[%clk 0:01:52.4]} 19. d5 {[%clk 0:01:49.3]} 19...
cxd5 {[%clk 0:01:51.8]} 20. Rfd1 {[%clk 0:01:50]} 20... Bc6 {[%clk 0:01:52.3]}
21. Bf1 {[%clk 0:01:27.1]} 21... Rad8 {[%clk 0:01:51.1]} 22. Ne2 {[%clk
0:01:28.3]} 22... g5 {[%clk 0:01:46.6]} 23. Nd4 {[%clk 0:01:28.4]} 23... Nxd4
{[%clk 0:01:29.8]} 24. Qxd4 {[%clk 0:01:30.3]} 24... h6 {[%clk 0:01:31.3]} 25.
Kh1 {[%clk 0:01:24.3]} 25... Kh7 {[%clk 0:01:26.4]} 26. f4 {[%clk 0:01:19.5]}
26... Rg8 {[%clk 0:01:22.3]} 27. g3 {[%clk 0:01:17.5]} 27... Rd7 {[%clk
0:01:09]} 28. Be2 {[%clk 0:01:13.3]} 28... Rdg7 {[%clk 0:01:06.6]} 29. Rf1
{[%clk 0:01:12.5]} 29... Qe6 {[%clk 0:01:00.2]} 30. b4 {[%clk 0:01:01.4]} 30...
g4 {[%clk 0:00:56.2]} 31. Nf2 {[%clk 0:01:02.1]} 31... h5 {[%clk 0:00:58.1]} 32.
Bd1 {[%clk 0:00:52.5]} 32... h4 {[%clk 0:00:57.2]} 33. Bb3 {[%clk 0:00:53.2]}
33... Kg6 {[%clk 0:00:54.2]} 34. Kg2 {[%clk 0:00:53.3]} 34... Rh7 {[%clk
0:00:49.5]} 35. a4 {[%clk 0:00:52.9]} 35... Rgh8 {[%clk 0:00:49.9]} 36. Rh1
{[%clk 0:00:54.4]} 36... h3+ {[%clk 0:00:46.2]} 37. Kf1 {[%clk 0:00:54.5]} 37...
Qd7 {[%clk 0:00:44.5]} 38. Ra1 {[%clk 0:00:47.3]} 38... Rc8 {[%clk 0:00:43.6]}
39. Ke2 {[%clk 0:00:46.9]} 39... Rc7 {[%clk 0:00:44]} 40. Rhc1 {[%clk
0:00:47.3]} 40... Rh8 {[%clk 0:00:44.5]} 41. Kd2 {[%clk 0:00:47.9]} 41... Rhc8
{[%clk 0:00:44.7]} 42. Nd1 {[%clk 0:00:48.9]} 42... Qd6 {[%clk 0:00:36.2]} 43.
Nc3 {[%clk 0:00:44.5]} 43... Qd7 {[%clk 0:00:35.9]} 44. Ne2 {[%clk 0:00:44.7]}
44... Ne8 {[%clk 0:00:36.4]} 45. Rc2 {[%clk 0:00:31.7]} 45... Nd6 {[%clk
0:00:37.3]} 46. Rac1 {[%clk 0:00:31]} 46... Rd8 {[%clk 0:00:33.4]} 47. Bxd5
{[%clk 0:00:25.5]} 47... Qe7 {[%clk 0:00:19.7]} 48. Rc5 {[%clk 0:00:15.2]} 48...
Rcd7 {[%clk 0:00:20.7]} 49. Bxc6 {[%clk 0:00:14.7]} 49... Nc4+ {[%clk
0:00:21.3]} 50. R1xc4 {[%clk 0:00:13.4]} 50... Rxd4+ {[%clk 0:00:22.5]} 51. Nxd4
{[%clk 0:00:14.6]} 51... bxc6 {[%clk 0:00:23.7]} 52. Rxc6+ {[%clk 0:00:16.5]}
52... Kh5 {[%clk 0:00:23.8]} 53. Kc3 {[%clk 0:00:14.1]} 53... Qf7 {[%clk
0:00:14.7]} 54. R4c5 {[%clk 0:00:13]} 54... Rd5 {[%clk 0:00:16.3]} 55. Rxd5
{[%clk 0:00:08.2]} 55... Qxd5 {[%clk 0:00:18.2]} 56. Rc5 {[%clk 0:00:09.6]}
56... Qa2 {[%clk 0:00:19.8]} 57. Rxf5+ {[%clk 0:00:10.9]} 57... Kg6 {[%clk
0:00:21.3]} 58. Rg5+ {[%clk 0:00:12.2]} 58... Kf6 {[%clk 0:00:22.6]} 59. Rf5+
{[%clk 0:00:12.6]} 59... Ke7 {[%clk 0:00:22.6]} 60. Re5+ {[%clk 0:00:13.3]}
60... Kd7 {[%clk 0:00:24.2]} 61. Rg5 {[%clk 0:00:12]} 61... Qxh2 {[%clk
0:00:24.9]} 62. Rxg4 {[%clk 0:00:13.6]} 62... Qg1 {[%clk 0:00:24.4]} 63. Rh4
{[%clk 0:00:13]} 63... h2 {[%clk 0:00:19]} 64. Rh7+ {[%clk 0:00:13.6]} 64... Ke8
{[%clk 0:00:20.5]} 65. Rh8+ {[%clk 0:00:14.3]} 65... Kf7 {[%clk 0:00:21.3]} 66.
Kc4 {[%clk 0:00:11.7]} 66... h1=Q {[%clk 0:00:22.3]} 67. Rxh1 {[%clk 0:00:12.1]}
67... Qxh1 {[%clk 0:00:24.2]} 68. Kd5 {[%clk 0:00:14]} 68... Qb1 {[%clk
0:00:24.9]} 69. b5 {[%clk 0:00:13.9]} 69... axb5 {[%clk 0:00:25.7]} 70. axb5
{[%clk 0:00:15.8]} 70... Ke7 {[%clk 0:00:27.3]} 71. Ke5 {[%clk 0:00:10.2]} 71...
Qd3 {[%clk 0:00:27.2]} 72. g4 {[%clk 0:00:09.3]} 72... Kd7 {[%clk 0:00:28.5]}
73. g5 {[%clk 0:00:08.5]} 73... Qxe3 {[%clk 0:00:29.4]} 74. g6 {[%clk
0:00:09.7]} 74... Qg3 {[%clk 0:00:28.5]} 75. Kxe4 {[%clk 0:00:09.7]} 75... Qxg6+
{[%clk 0:00:29.4]} 76. Ke5 {[%clk 0:00:11.2]} 76... Qd3 {[%clk 0:00:28.4]} 77.
f5 {[%clk 0:00:11.6]} 77... Qe3+ {[%clk 0:00:29.7]} 78. Kd5 {[%clk 0:00:13]}
78... Qf4 {[%clk 0:00:31.3]} 79. Kc4 {[%clk 0:00:13.5]} 79... Kd6 {[%clk
0:00:31.5]} 80. b6 {[%clk 0:00:11.9]} 80... Qc1+ {[%clk 0:00:32.9]} 81. Kd3
{[%clk 0:00:12.9]} 81... Kd5 {[%clk 0:00:30.8]} 82. b7 {[%clk 0:00:11.9]} 82...
Qc4+ {[%clk 0:00:30.1]} 83. Ke3 {[%clk 0:00:09.1]} 83... Qxd4+ {[%clk
0:00:30.9]} 0-1

[Event "*** Titled Tuesday Blitz"]
[Site "Chess.com"]
[Date "2018.04.03"]
[Round "9"]
[White "Kangoroo3000"]
[Black "florianschwabeneder"]
[Result "0-1"]
[WhiteElo "2394"]
[BlackElo "2386"]
[TimeControl "180+2"]
[EndTime "15:03:09 PDT"]
[Termination "florianschwabeneder won by resignation"]

1. d4 {[%clk 0:03:01.9]} 1... Nf6 {[%clk 0:02:59.9]} 2. c4 {[%clk 0:03:03.2]}
2... e6 {[%clk 0:03:01.1]} 3. Nf3 {[%clk 0:03:03.6]} 3... Bb4+ {[%clk
0:03:01.9]} 4. Nbd2 {[%clk 0:03:04]} 4... O-O {[%clk 0:03:02.1]} 5. a3 {[%clk
0:03:04.9]} 5... Be7 {[%clk 0:03:02.9]} 6. e4 {[%clk 0:03:06.1]} 6... d6 {[%clk
0:03:03.9]} 7. Qc2 {[%clk 0:03:06.3]} 7... Nbd7 {[%clk 0:03:02.4]} 8. Be2 {[%clk
0:03:07.8]} 8... c5 {[%clk 0:03:01.5]} 9. d5 {[%clk 0:03:06.2]} 9... e5 {[%clk
0:03:01.5]} 10. O-O {[%clk 0:03:06.9]} 10... Ne8 {[%clk 0:03:01.6]} 11. Bd3
{[%clk 0:03:06.2]} 11... g6 {[%clk 0:03:01.5]} 12. Nb1 {[%clk 0:03:04.1]} 12...
Ng7 {[%clk 0:03:01.4]} 13. Nfd2 {[%clk 0:03:05]} 13... f5 {[%clk 0:03:00]} 14.
exf5 {[%clk 0:03:06.4]} 14... gxf5 {[%clk 0:03:00.3]} 15. f3 {[%clk 0:03:07.9]}
15... Bg5 {[%clk 0:03:00]} 16. Nc3 {[%clk 0:03:08.4]} 16... Be3+ {[%clk
0:02:59.9]} 17. Kh1 {[%clk 0:03:09]} 17... Qh4 {[%clk 0:02:39.8]} 18. Nb3 {[%clk
0:03:00.3]} 18... Bxc1 {[%clk 0:02:28.2]} 19. Raxc1 {[%clk 0:03:02.2]} 19... a6
{[%clk 0:02:29.1]} 20. Qf2 {[%clk 0:03:01.3]} 20... Qxf2 {[%clk 0:02:24.7]} 21.
Rxf2 {[%clk 0:03:03.2]} 21... b6 {[%clk 0:02:17.4]} 22. Nd2 {[%clk 0:03:02.5]}
22... Nf6 {[%clk 0:02:17.8]} 23. b4 {[%clk 0:03:01.3]} 23... Bd7 {[%clk
0:02:16.7]} 24. Rb1 {[%clk 0:03:01.3]} 24... Rfb8 {[%clk 0:02:12.4]} 25. Rff1
{[%clk 0:03:02.5]} 25... Kf8 {[%clk 0:02:04.4]} 26. Nb3 {[%clk 0:02:59.2]} 26...
Ke7 {[%clk 0:02:01.8]} 27. bxc5 {[%clk 0:02:59.4]} 27... bxc5 {[%clk 0:02:02.5]}
28. Na5 {[%clk 0:03:00]} 28... Kd8 {[%clk 0:02:02.4]} 29. h3 {[%clk 0:02:56.8]}
29... h5 {[%clk 0:02:02.2]} 30. h4 {[%clk 0:02:55]} 30... f4 {[%clk 0:01:53.8]}
31. Ne4 {[%clk 0:02:42.8]} 31... Nxe4 {[%clk 0:01:53.9]} 32. Bxe4 {[%clk
0:02:44.7]} 32... Kc7 {[%clk 0:01:46.3]} 33. g3 {[%clk 0:02:42.7]} 33... fxg3
{[%clk 0:01:41.8]} 34. Kg2 {[%clk 0:02:43.5]} 34... Nf5 {[%clk 0:01:40.4]} 35.
Bxf5 {[%clk 0:02:17.4]} 35... Bxf5 {[%clk 0:01:42.2]} 36. Rxb8 {[%clk
0:02:18.9]} 36... Rxb8 {[%clk 0:01:42.4]} 37. Kxg3 {[%clk 0:02:19.3]} 37... Rb2
{[%clk 0:01:37.7]} 38. Rf2 {[%clk 0:02:09.9]} 38... Rxf2 {[%clk 0:01:06.3]} 39.
Kxf2 {[%clk 0:02:11.6]} 39... Kb6 {[%clk 0:01:06.6]} 40. Nb3 {[%clk 0:02:11.5]}
40... Bd3 {[%clk 0:01:06.6]} 41. Nd2 {[%clk 0:02:10.6]} 41... Ka5 {[%clk
0:01:06.7]} 42. Ke3 {[%clk 0:02:11.7]} 42... Bc2 {[%clk 0:01:06.2]} 43. Ne4
{[%clk 0:01:54]} 43... Bxe4 {[%clk 0:01:02.8]} 44. Kxe4 {[%clk 0:01:55.9]} 44...
Ka4 {[%clk 0:01:02.8]} 45. Kf5 {[%clk 0:01:57.4]} 45... Kxa3 {[%clk 0:00:59.5]}
46. Ke6 {[%clk 0:01:57.5]} 46... Kb4 {[%clk 0:00:57.6]} 47. Kxd6 {[%clk
0:01:58.7]} 47... a5 {[%clk 0:00:58.5]} 48. Kc6 {[%clk 0:01:43.7]} 48... a4
{[%clk 0:00:54.8]} 49. d6 {[%clk 0:01:45.6]} 49... a3 {[%clk 0:00:56]} 50. d7
{[%clk 0:01:47.5]} 50... a2 {[%clk 0:00:57.2]} 51. d8=Q {[%clk 0:01:49.4]} 51...
a1=Q {[%clk 0:00:58.4]} 52. Qb6+ {[%clk 0:01:36]} 52... Kxc4 {[%clk 0:00:58.9]}
53. Qxc5+ {[%clk 0:01:37.2]} 53... Kd3 {[%clk 0:01:00]} 54. Kd6 {[%clk
0:01:05.8]} 54... Qd4+ {[%clk 0:00:52.9]} 55. Qd5 {[%clk 0:01:06.8]} 55... Ke3
{[%clk 0:00:48.6]} 56. Ke6 {[%clk 0:01:02.4]} 56... Qxh4 {[%clk 0:00:31.9]} 57.
Qxe5+ {[%clk 0:00:57.4]} 57... Kxf3 {[%clk 0:00:33]} 58. Qc3+ {[%clk 0:00:58]}
58... Kg2 {[%clk 0:00:32.6]} 59. Qd2+ {[%clk 0:00:57.6]} 59... Kh3 {[%clk
0:00:30.9]} 60. Qd3+ {[%clk 0:00:51.2]} 60... Qg3 {[%clk 0:00:30.9]} 61. Qf1+
{[%clk 0:00:51.8]} 61... Qg2 {[%clk 0:00:30.5]} 62. Qd3+ {[%clk 0:00:52.1]}
62... Kh2 {[%clk 0:00:29.5]} 63. Qd6+ {[%clk 0:00:45.5]} 63... Kh3 {[%clk
0:00:30]} 64. Qd3+ {[%clk 0:00:45.7]} 64... Kh4 {[%clk 0:00:31]} 65. Kf6 {[%clk
0:00:32.9]} 65... Qg5+ {[%clk 0:00:29]} 66. Ke6 {[%clk 0:00:32.4]} 66... Qf4
{[%clk 0:00:24.8]} 67. Qc3 {[%clk 0:00:21.8]} 67... Qg3 {[%clk 0:00:22.5]} 68.
Qd2 {[%clk 0:00:19.7]} 68... Kh3 {[%clk 0:00:21.3]} 69. Kf5 {[%clk 0:00:18]}
69... Qg4+ {[%clk 0:00:21.6]} 70. Ke5 {[%clk 0:00:19.4]} 70... h4 {[%clk
0:00:22.8]} 71. Qc2 {[%clk 0:00:13.4]} 71... Qg2 {[%clk 0:00:23]} 72. Qc8+
{[%clk 0:00:10.2]} 72... Kh2 {[%clk 0:00:23.4]} 73. Kf4 {[%clk 0:00:10.3]} 73...
Qg3+ {[%clk 0:00:23.6]} 74. Ke4 {[%clk 0:00:11.6]} 74... h3 {[%clk 0:00:23.7]}
75. Kd4 {[%clk 0:00:11.5]} 75... Qf2+ {[%clk 0:00:23.3]} 76. Ke4 {[%clk
0:00:11.5]} 76... Kg2 {[%clk 0:00:23.9]} 77. Qg4+ {[%clk 0:00:11.4]} 77... Qg3
{[%clk 0:00:21.2]} 78. Qe2+ {[%clk 0:00:11.9]} 78... Qf2 {[%clk 0:00:22.6]} 79.
Qg4+ {[%clk 0:00:12.9]} 79... Kh2 {[%clk 0:00:23.9]} 80. Qc8 {[%clk 0:00:05.8]}
80... Qg2+ {[%clk 0:00:17.7]} 81. Ke3 {[%clk 0:00:05.8]} 81... Kh1 {[%clk
0:00:17.1]} 82. Qd7 {[%clk 0:00:05.5]} 82... h2 {[%clk 0:00:16.6]} 83. Kf4
{[%clk 0:00:05.2]} 83... Qf2+ {[%clk 0:00:16.1]} 84. Kg4 {[%clk 0:00:06.2]}
84... Kg1 {[%clk 0:00:15.1]} 85. Qd1+ {[%clk 0:00:06.8]} 85... Kg2 {[%clk
0:00:16.1]} 86. Qd5+ {[%clk 0:00:07.2]} 86... Kf1 {[%clk 0:00:16.8]} 87. Qd1+
{[%clk 0:00:07.7]} 87... Kg2 {[%clk 0:00:18.1]} 88. Qd5+ {[%clk 0:00:08.5]}
88... Kg1 {[%clk 0:00:19.3]} 89. Qd1+ {[%clk 0:00:09.5]} 89... Qf1 {[%clk
0:00:20.7]} 90. Qd4+ {[%clk 0:00:09.5]} 90... Kh1 {[%clk 0:00:21.8]} 91. Qe4+
{[%clk 0:00:10.3]} 91... Qg2+ {[%clk 0:00:22.8]} 0-1

[Event "*** Titled Tuesday Blitz"]
[Site "Chess.com"]
[Date "2018.04.03"]
[Round "9"]
[White "OparinGrigoriy"]
[Black "Sebastian"]
[Result "0-1"]
[WhiteElo "2821"]
[BlackElo "2807"]
[TimeControl "180+2"]
[EndTime "15:03:33 PDT"]
[Termination "Sebastian won by resignation"]

1. e4 {[%clk 0:03:01.9]} 1... e5 {[%clk 0:03:01.1]} 2. Nf3 {[%clk 0:03:02.9]}
2... Nc6 {[%clk 0:03:02.3]} 3. Bb5 {[%clk 0:03:04.5]} 3... Nf6 {[%clk
0:03:02.7]} 4. d3 {[%clk 0:03:04.6]} 4... d6 {[%clk 0:03:02.3]} 5. O-O {[%clk
0:03:04.9]} 5... Be7 {[%clk 0:03:03.2]} 6. c3 {[%clk 0:03:06.4]} 6... O-O {[%clk
0:03:03.9]} 7. Re1 {[%clk 0:03:06.6]} 7... a6 {[%clk 0:03:05.1]} 8. Ba4 {[%clk
0:03:06.1]} 8... Re8 {[%clk 0:03:06.3]} 9. Nbd2 {[%clk 0:03:06.4]} 9... Bf8
{[%clk 0:03:07]} 10. Nf1 {[%clk 0:03:07]} 10... h6 {[%clk 0:03:08.4]} 11. Ng3
{[%clk 0:03:07.9]} 11... b5 {[%clk 0:03:09.6]} 12. Bc2 {[%clk 0:03:08.6]} 12...
d5 {[%clk 0:03:10.2]} 13. Qe2 {[%clk 0:03:07]} 13... Be6 {[%clk 0:03:07.1]} 14.
h3 {[%clk 0:03:07.4]} 14... d4 {[%clk 0:02:58.7]} 15. Bd2 {[%clk 0:03:06.6]}
15... Qd6 {[%clk 0:02:38.7]} 16. Rad1 {[%clk 0:02:43.1]} 16... Rad8 {[%clk
0:02:27.2]} 17. a4 {[%clk 0:02:38.7]} 17... Qc5 {[%clk 0:01:52.2]} 18. Rc1
{[%clk 0:02:25.1]} 18... Qb6 {[%clk 0:01:27.9]} 19. axb5 {[%clk 0:02:25.1]}
19... axb5 {[%clk 0:01:28.7]} 20. Bb1 {[%clk 0:01:58.8]} 20... Nd7 {[%clk
0:01:21.9]} 21. cxd4 {[%clk 0:01:52.8]} 21... exd4 {[%clk 0:01:23.2]} 22. Nh2
{[%clk 0:01:47.6]} 22... Nc5 {[%clk 0:01:22.5]} 23. Bc2 {[%clk 0:01:45.3]} 23...
Na4 {[%clk 0:00:51.5]} 24. Ng4 {[%clk 0:01:32.2]} 24... Nb4 {[%clk 0:00:48.5]}
25. Bxa4 {[%clk 0:01:25.9]} 25... bxa4 {[%clk 0:00:49.1]} 26. Nh5 {[%clk
0:01:27.3]} 26... Bxg4 {[%clk 0:00:38.7]} 27. hxg4 {[%clk 0:01:23.9]} 27... c5
{[%clk 0:00:39.9]} 28. Rc4 {[%clk 0:01:21.9]} 28... Nc6 {[%clk 0:00:27.4]} 29.
Rxa4 {[%clk 0:00:52.9]} 29... Qxb2 {[%clk 0:00:27.8]} 30. Ra6 {[%clk 0:00:54.2]}
30... Qb5 {[%clk 0:00:26.4]} 31. Rea1 {[%clk 0:00:52.2]} 31... Ne5 {[%clk
0:00:26.3]} 32. g5 {[%clk 0:00:43.6]} 32... hxg5 {[%clk 0:00:18]} 33. Bxg5
{[%clk 0:00:43.9]} 33... Rd6 {[%clk 0:00:19]} 34. R6a3 {[%clk 0:00:34.7]} 34...
c4 {[%clk 0:00:14.9]} 35. dxc4 {[%clk 0:00:31.9]} 35... Qxc4 {[%clk 0:00:16.1]}
36. Qxc4 {[%clk 0:00:21.9]} 36... Nxc4 {[%clk 0:00:17.1]} 37. Rg3 {[%clk
0:00:23.4]} 37... Rg6 {[%clk 0:00:09.2]} 38. Nf4 {[%clk 0:00:24.3]} 38... Rc6
{[%clk 0:00:09.9]} 39. Nd5 {[%clk 0:00:07.5]} 39... Rg6 {[%clk 0:00:10.2]} 40.
Rd1 {[%clk 0:00:07.2]} 40... Rxe4 {[%clk 0:00:09.2]} 41. Bd8 {[%clk 0:00:03.6]}
41... Rxg3 {[%clk 0:00:09.3]} 42. fxg3 {[%clk 0:00:05.5]} 42... Bc5 {[%clk
0:00:09.8]} 43. Kh2 {[%clk 0:00:06.6]} 43... Re5 {[%clk 0:00:09.7]} 44. Nf4
{[%clk 0:00:07.2]} 44... Ne3 {[%clk 0:00:09]} 45. Rc1 {[%clk 0:00:06]} 45... f6
{[%clk 0:00:09.3]} 46. Bc7 {[%clk 0:00:06.3]} 46... Rf5 {[%clk 0:00:07.9]} 47.
Kh3 {[%clk 0:00:07.2]} 47... g5 {[%clk 0:00:05.1]} 48. g4 {[%clk 0:00:08.5]}
48... Rxf4 {[%clk 0:00:04]} 49. Bxf4 {[%clk 0:00:09.8]} 49... gxf4 {[%clk
0:00:05.4]} 50. Rxc5 {[%clk 0:00:11.4]} 50... Kf7 {[%clk 0:00:06.2]} 51. Rc8
{[%clk 0:00:12.3]} 51... Ke6 {[%clk 0:00:07.3]} 52. Rd8 {[%clk 0:00:12.7]} 52...
Ke5 {[%clk 0:00:08.6]} 53. Kh2 {[%clk 0:00:12.6]} 53... Ke4 {[%clk 0:00:09.9]}
54. Kg1 {[%clk 0:00:13.7]} 54... Nxg4 {[%clk 0:00:11]} 55. Kf1 {[%clk
0:00:14.8]} 55... Ne3+ {[%clk 0:00:11.7]} 56. Kf2 {[%clk 0:00:16.1]} 56... Ng4+
{[%clk 0:00:12.7]} 57. Ke2 {[%clk 0:00:17.1]} 57... Ne5 {[%clk 0:00:14.4]} 58.
Kf2 {[%clk 0:00:17.2]} 58... d3 {[%clk 0:00:14.9]} 59. Rd6 {[%clk 0:00:17]}
59... f5 {[%clk 0:00:15.8]} 60. Rd8 {[%clk 0:00:17.8]} 60... Ng4+ {[%clk
0:00:14.8]} 61. Ke1 {[%clk 0:00:18.2]} 61... Ne3 {[%clk 0:00:15.6]} 62. Kf2
{[%clk 0:00:19.7]} 62... Ng4+ {[%clk 0:00:15.9]} 63. Ke1 {[%clk 0:00:20.9]}
63... Ne5 {[%clk 0:00:17.7]} 64. Kf2 {[%clk 0:00:22]} 64... Nc4 {[%clk
0:00:16.1]} 65. Rd7 {[%clk 0:00:16.3]} 65... Nd2 {[%clk 0:00:14.2]} 66. Rd8
{[%clk 0:00:16.8]} 66... Nc4 {[%clk 0:00:13.1]} 67. Rd7 {[%clk 0:00:18]} 67...
Nd2 {[%clk 0:00:14.1]} 68. Rd8 {[%clk 0:00:19.3]} 68... Nb3 {[%clk 0:00:14.1]}
69. Rd7 {[%clk 0:00:19.2]} 69... Nd4 {[%clk 0:00:13.9]} 70. Ke1 {[%clk
0:00:18.1]} 70... Nc6 {[%clk 0:00:10.5]} 71. Kd2 {[%clk 0:00:16]} 71... Ne5
{[%clk 0:00:11.4]} 72. Rd8 {[%clk 0:00:17.3]} 72... f3 {[%clk 0:00:11.7]} 73.
gxf3+ {[%clk 0:00:19]} 73... Nxf3+ {[%clk 0:00:12.8]} 74. Kd1 {[%clk 0:00:19.3]}
74... Ne5 {[%clk 0:00:12.3]} 75. Kd2 {[%clk 0:00:20]} 75... Nf3+ {[%clk
0:00:08]} 76. Kd1 {[%clk 0:00:20.6]} 76... f4 {[%clk 0:00:09.2]} 77. Re8+ {[%clk
0:00:21]} 77... Kd4 {[%clk 0:00:10.5]} 78. Rd8+ {[%clk 0:00:21.5]} 78... Ke3
{[%clk 0:00:12.1]} 79. Re8+ {[%clk 0:00:23]} 79... Kd4 {[%clk 0:00:10.8]} 80.
Rd8+ {[%clk 0:00:24.1]} 80... Ke4 {[%clk 0:00:12.5]} 81. Re8+ {[%clk 0:00:25.7]}
81... Ne5 {[%clk 0:00:14.1]} 82. Kd2 {[%clk 0:00:27]} 82... f3 {[%clk
0:00:13.2]} 83. Rf8 {[%clk 0:00:22.8]} 83... Nc4+ {[%clk 0:00:08]} 84. Kd1
{[%clk 0:00:23.5]} 84... Ke3 {[%clk 0:00:07.6]} 85. Re8+ {[%clk 0:00:24.6]}
85... Kd4 {[%clk 0:00:07.8]} 86. Rf8 {[%clk 0:00:23.8]} 86... Ne5 {[%clk
0:00:06.1]} 87. Kd2 {[%clk 0:00:24.6]} 87... Nc4+ {[%clk 0:00:07.2]} 88. Kd1
{[%clk 0:00:25.5]} 88... Ke4 {[%clk 0:00:08.9]} 89. Re8+ {[%clk 0:00:25.6]}
89... Ne5 {[%clk 0:00:10.1]} 90. Rf8 {[%clk 0:00:25]} 90... Ng6 {[%clk
0:00:08.1]} 91. Re8+ {[%clk 0:00:18.1]} 91... Kd4 {[%clk 0:00:08.9]} 92. Rd8+
{[%clk 0:00:18.3]} 92... Ke3 {[%clk 0:00:08.6]} 93. Re8+ {[%clk 0:00:19.5]}
93... Kf4 {[%clk 0:00:07.9]} 94. Kd2 {[%clk 0:00:18.5]} 94... f2 {[%clk
0:00:08]} 95. Re6 {[%clk 0:00:19.5]} 95... Nh4 {[%clk 0:00:06.6]} 96. Rf6+
{[%clk 0:00:12.9]} 96... Nf5 {[%clk 0:00:07.6]} 0-1

[Event "*** Titled Tuesday Blitz"]
[Site "Chess.com"]
[Date "2018.04.03"]
[Round "10"]
[White "pulvettd"]
[Black "VerdeNotte"]
[Result "1-0"]
[WhiteElo "2448"]
[BlackElo "2625"]
[TimeControl "180+2"]
[EndTime "15:11:57 PDT"]
[Termination "pulvettd won by resignation"]

1. e4 {[%clk 0:03:01.9]} 1... Nf6 {[%clk 0:02:58.3]} 2. Nc3 {[%clk 0:02:58.6]}
2... c5 {[%clk 0:02:56.1]} 3. Nf3 {[%clk 0:02:57.6]} 3... Nc6 {[%clk 0:02:56.6]}
4. d4 {[%clk 0:02:56.2]} 4... cxd4 {[%clk 0:02:56.8]} 5. Nxd4 {[%clk 0:02:57.9]}
5... e5 {[%clk 0:02:52.5]} 6. Ndb5 {[%clk 0:02:58.1]} 6... d6 {[%clk 0:02:53.4]}
7. Bg5 {[%clk 0:02:57.7]} 7... a6 {[%clk 0:02:54.5]} 8. Bxf6 {[%clk 0:02:57.3]}
8... gxf6 {[%clk 0:02:55.2]} 9. Na3 {[%clk 0:02:59.1]} 9... b5 {[%clk
0:02:55.4]} 10. Nd5 {[%clk 0:03:00.2]} 10... f5 {[%clk 0:02:56.4]} 11. Bd3
{[%clk 0:02:57.6]} 11... Be6 {[%clk 0:02:55.8]} 12. c4 {[%clk 0:02:52.1]} 12...
Qa5+ {[%clk 0:02:55]} 13. Kf1 {[%clk 0:02:50.4]} 13... b4 {[%clk 0:02:41.8]} 14.
Nc2 {[%clk 0:02:35.3]} 14... f4 {[%clk 0:02:41]} 15. b3 {[%clk 0:02:28.7]} 15...
Bg7 {[%clk 0:02:32.8]} 16. a3 {[%clk 0:02:27.7]} 16... bxa3 {[%clk 0:02:32.6]}
17. Rxa3 {[%clk 0:02:25.1]} 17... Qd8 {[%clk 0:02:34.2]} 18. b4 {[%clk
0:02:22.5]} 18... O-O {[%clk 0:02:33]} 19. Qh5 {[%clk 0:02:19.1]} 19... a5
{[%clk 0:02:26.6]} 20. b5 {[%clk 0:02:16.7]} 20... Nb4 {[%clk 0:02:26.5]} 21. g3
{[%clk 0:02:10.9]} 21... f3 {[%clk 0:02:17.7]} 22. Nce3 {[%clk 0:02:05.1]} 22...
Nxd3 {[%clk 0:02:02.8]} 23. Rxd3 {[%clk 0:02:03]} 23... a4 {[%clk 0:02:03]} 24.
Qxf3 {[%clk 0:02:02.5]} 24... Bh3+ {[%clk 0:02:02.2]} 25. Ke2 {[%clk 0:02:01.5]}
25... Be6 {[%clk 0:01:55.8]} 26. Ra1 {[%clk 0:01:59]} 26... Qa5 {[%clk
0:01:53.1]} 27. Nf5 {[%clk 0:01:58.3]} 27... Bxf5 {[%clk 0:01:42.5]} 28. Qxf5
{[%clk 0:01:57.8]} 28... Kh8 {[%clk 0:01:40.1]} 29. g4 {[%clk 0:01:56.3]} 29...
a3 {[%clk 0:01:33.2]} 30. Rh3 {[%clk 0:01:51.9]} 30... h6 {[%clk 0:01:33.7]} 31.
Nf6 {[%clk 0:01:52]} 1-0